{"text_format":"1","workbook":"xlsx","n_sheets":2,"sheets":["Sheet1","LogSheet"],"not_rendered":{"charts":0,"images":0,"macros":1,"external_links":0,"defined_names":0,"comments":0,"pivot_tables":0},"unopened":[],"bounds":{"document_bytes":16777216,"sheet_cells":100000,"rows_first":2000,"rows_last":500,"rows_between":2000,"halvings":0,"cell_chars":16384,"cell_head_chars":4096},"cells_cut":0,"cells_raw":0,"read":"whole","date_system":"1900"}

{"sheet":"Sheet1","index":0,"n_rows":81,"n_cols":15,"rows_kept":81,"cut":false,"hidden":false,"merged":[]}
[null,"FOR RESEARCH USE ONLY / SÓLO PARA USO DE INVESTIGACIÓN / POUR USAGE DE RECHERCHE UNIQUEMENT"]
[null,"CELLS IN THIS PLATE MAP POPULATE FROM DATA ENTERED INTO ROWS 34-75. ENTER SAMPLE INFORMATION AND RESULTS IN ROWS 34-75."]
[null,"LAS CÉLULAS EN ESTA MAPA DE PLACA SE LLENAN A PARTIR DE LOS DATOS INTRODUCIDOS EN LAS FILAS 34-75. INGRESE LA INFORMACIÓN DE LA MUESTRA Y LOS RESULTADOS EN LAS FILAS 34-75."]
[null,"LES CELLULES DANS CETTE CARTE DE PLAQUE SE REMPLISSENT À PARTIR DES DONNÉES SAISIES DANS LES LIGNES 34-75. SAISISSEZ LES INFORMATIONS DE L'ÉCHANTILLON ET LES RÉSULTATS DANS LES LIGNES 34-75."]
[]
[null,"WORKSHEET: Ingezim ASF CROM Ag"]
[]
["F1",{"$f":"B74","v":"Sample 41"},{"$f":"C74","v":"ASFV\n+ / - / ∅"},"F2",{"$f":"B75","v":"Sample 42"},{"$f":"C75","v":"ASFV\n+ / - / ∅"}]
["A8",{"$f":"B41","v":"Sample 8"},{"$f":"C41","v":"ASFV\n+ / - / ∅"},"B8",{"$f":"B49","v":"Sample 16"},{"$f":"C49","v":"ASFV\n+ / - / ∅"},"C8",{"$f":"B57","v":"Sample 24"},{"$f":"C57","v":"ASFV\n+ / - / ∅"},"D8",{"$f":"B65","v":"Sample 32"},{"$f":"C65","v":"ASFV\n+ / - / ∅"},"E8",{"$f":"B73","v":"Sample 40"},{"$f":"C73","v":"ASFV\n+ / - / ∅"}]
["A7",{"$f":"B40","v":"Sample 7"},{"$f":"C40","v":"ASFV\n+ / - / ∅"},"B7",{"$f":"B48","v":"Sample 15"},{"$f":"C48","v":"ASFV\n+ / - / ∅"},"C7",{"$f":"B56","v":"Sample 23"},{"$f":"C56","v":"ASFV\n+ / - / ∅"},"D7",{"$f":"B64","v":"Sample 31"},{"$f":"C64","v":"ASFV\n+ / - / ∅"},"E7",{"$f":"B72","v":"Sample 39"},{"$f":"C72","v":"ASFV\n+ / - / ∅"}]
["A6",{"$f":"B39","v":"Sample 6"},{"$f":"C39","v":"ASFV\n+ / - / ∅"},"B6",{"$f":"B47","v":"Sample 14"},{"$f":"C47","v":"ASFV\n+ / - / ∅"},"C6",{"$f":"B55","v":"Sample 22"},{"$f":"C55","v":"ASFV\n+ / - / ∅"},"D6",{"$f":"B63","v":"Sample 30"},{"$f":"C63","v":"ASFV\n+ / - / ∅"},"E6",{"$f":"B71","v":"Sample 38"},{"$f":"C71","v":"ASFV\n+ / - / ∅"}]
["A5",{"$f":"B38","v":"Sample 5"},{"$f":"C38","v":"ASFV\n+ / - / ∅"},"B5",{"$f":"B46","v":"Sample 13"},{"$f":"C46","v":"ASFV\n+ / - / ∅"},"C5",{"$f":"B54","v":"Sample 21"},{"$f":"C54","v":"ASFV\n+ / - / ∅"},"D5",{"$f":"B62","v":"Sample 29"},{"$f":"C62","v":"ASFV\n+ / - / ∅"},"E5",{"$f":"B70","v":"Sample 37"},{"$f":"C70","v":"ASFV\n+ / - / ∅"}]
["A4",{"$f":"B37","v":"Sample 4"},{"$f":"C37","v":"ASFV\n+ / - / ∅"},"B4",{"$f":"B45","v":"Sample 12"},{"$f":"C45","v":"ASFV\n+ / - / ∅"},"C4",{"$f":"B53","v":"Sample 20"},{"$f":"C53","v":"ASFV\n+ / - / ∅"},"D4",{"$f":"B61","v":"Sample 28"},{"$f":"C61","v":"ASFV\n+ / - / ∅"},"E4",{"$f":"B69","v":"Sample 36"},{"$f":"C69","v":"ASFV\n+ / - / ∅"}]
["A3",{"$f":"B36","v":"Sample 3"},{"$f":"C36","v":"ASFV\n+ / - / ∅"},"B3",{"$f":"B44","v":"Sample 11"},{"$f":"C44","v":"ASFV\n+ / - / ∅"},"C3",{"$f":"B52","v":"Sample 19"},{"$f":"C52","v":"ASFV\n+ / - / ∅"},"D3",{"$f":"B60","v":"Sample 27"},{"$f":"C60","v":"ASFV\n+ / - / ∅"},"E3",{"$f":"B68","v":"Sample 35"},{"$f":"C68","v":"ASFV\n+ / - / ∅"}]
["A2",{"$f":"B35","v":"Sample 2"},{"$f":"C35","v":"ASFV\n+ / - / ∅"},"B2",{"$f":"B43","v":"Sample 10"},{"$f":"C43","v":"ASFV\n+ / - / ∅"},"C2",{"$f":"B51","v":"Sample 18"},{"$f":"C51","v":"ASFV\n+ / - / ∅"},"D2",{"$f":"B59","v":"Sample 26"},{"$f":"C59","v":"ASFV\n+ / - / ∅"},"E2",{"$f":"B67","v":"Sample 34"},{"$f":"C67","v":"ASFV\n+ / - / ∅"}]
["A1",{"$f":"B34","v":"Sample 1"},{"$f":"C34","v":"ASFV\n+ / - / ∅"},"B1",{"$f":"B42","v":"Sample 9"},{"$f":"C42","v":"ASFV\n+ / - / ∅"},"C1",{"$f":"B50","v":"Sample 17"},{"$f":"C50","v":"ASFV\n+ / - / ∅"},"D1",{"$f":"B58","v":"Sample 25"},{"$f":"C58","v":"ASFV\n+ / - / ∅"},"E1",{"$f":"B66","v":"Sample 33"},{"$f":"C66","v":"ASFV\n+ / - / ∅"}]
[]
[null,null,"Date:","_____________________"]
[null,null,"Location:","_____________________"]
[null,null,"Ambient temperature:","_____________________",null,null,null,null,null,"Humidity:","_____________________"]
[null,null,"Operator:","_____________________"]
[null,null,"Time fluid handler start:","_____________________",null,null,null,null,null,"Time fluid handler finish:","_____________________"]
[null,null,"Test lot number(s):","_____________________"]
[]
[]
[]
[]
[]
[]
[]
[]
[]
[]
["A1","Sample 1","ASFV\n+ / - / ∅","Other information"]
["A2","Sample 2","ASFV\n+ / - / ∅","Other information"]
["A3","Sample 3","ASFV\n+ / - / ∅","Other information"]
["A4","Sample 4","ASFV\n+ / - / ∅","Other information"]
["A5","Sample 5","ASFV\n+ / - / ∅","Other information"]
["A6","Sample 6","ASFV\n+ / - / ∅","Other information"]
["A7","Sample 7","ASFV\n+ / - / ∅","Other information"]
["A8","Sample 8","ASFV\n+ / - / ∅","Other information"]
["B1","Sample 9","ASFV\n+ / - / ∅","Other information"]
["B2","Sample 10","ASFV\n+ / - / ∅","Other information"]
["B3","Sample 11","ASFV\n+ / - / ∅","Other information"]
["B4","Sample 12","ASFV\n+ / - / ∅","Other information"]
["B5","Sample 13","ASFV\n+ / - / ∅","Other information"]
["B6","Sample 14","ASFV\n+ / - / ∅","Other information"]
["B7","Sample 15","ASFV\n+ / - / ∅","Other information"]
["B8","Sample 16","ASFV\n+ / - / ∅","Other information"]
["C1","Sample 17","ASFV\n+ / - / ∅","Other information"]
["C2","Sample 18","ASFV\n+ / - / ∅","Other information"]
["C3","Sample 19","ASFV\n+ / - / ∅","Other information"]
["C4","Sample 20","ASFV\n+ / - / ∅","Other information"]
["C5","Sample 21","ASFV\n+ / - / ∅","Other information"]
["C6","Sample 22","ASFV\n+ / - / ∅","Other information"]
["C7","Sample 23","ASFV\n+ / - / ∅","Other information"]
["C8","Sample 24","ASFV\n+ / - / ∅","Other information"]
["D1","Sample 25","ASFV\n+ / - / ∅","Other information"]
["D2","Sample 26","ASFV\n+ / - / ∅","Other information"]
["D3","Sample 27","ASFV\n+ / - / ∅","Other information"]
["D4","Sample 28","ASFV\n+ / - / ∅","Other information"]
["D5","Sample 29","ASFV\n+ / - / ∅","Other information"]
["D6","Sample 30","ASFV\n+ / - / ∅","Other information"]
["D7","Sample 31","ASFV\n+ / - / ∅","Other information"]
["D8","Sample 32","ASFV\n+ / - / ∅","Other information"]
["E1","Sample 33","ASFV\n+ / - / ∅","Other information"]
["E2","Sample 34","ASFV\n+ / - / ∅","Other information"]
["E3","Sample 35","ASFV\n+ / - / ∅","Other information"]
["E4","Sample 36","ASFV\n+ / - / ∅","Other information"]
["E5","Sample 37","ASFV\n+ / - / ∅","Other information"]
["E6","Sample 38","ASFV\n+ / - / ∅","Other information"]
["E7","Sample 39","ASFV\n+ / - / ∅","Other information"]
["E8","Sample 40","ASFV\n+ / - / ∅","Other information"]
["F1","Sample 41","ASFV\n+ / - / ∅","Other information"]
["F2","Sample 42","ASFV\n+ / - / ∅","Other information"]
["F3"]
["F4"]
["F5"]
["F6"]
["F7"]
["F8"]

{"sheet":"LogSheet","index":1,"n_rows":75,"n_cols":20,"rows_kept":75,"cut":false,"hidden":true,"merged":[]}
[]
[null,"CELLS IN THIS PLATE MAP POPULATE FROM DATA ENTERED INTO ROWS 34-75. ENTER SAMPLE INFORMATION AND RESULTS IN ROWS 34-75."]
[]
[]
[]
[null,"WORKSHEET: Ingezim ASF CROM Ag"]
[null,null,null,null,null,null,null,null,null,null,null,null,null,null,null,null,null,null,"IgM","IgG"]
[null,"Sample 41","IgG\n+ / - / ∅","F2",null,"Sample 42"]
[null,"Sample 8","IgM\n+ / - / ∅","B8",null,"Sample 16","C8",null,null,"D8","IgM\n+ / - / ∅",null,"E8","Sample 32","IgM\n+ / - / ∅",null,null,"Sample 40","IgM\n+ / - / ∅"]
[null,"Sample 7","IgM\n+ / - / ∅","B7",null,"Sample 15","C7",null,null,"D7","IgM\n+ / - / ∅",null,"E7","Sample 31","IgM\n+ / - / ∅",null,null,"Sample 39","IgM\n+ / - / ∅"]
[null,"Sample 6","IgM\n+ / - / ∅","B6",null,"Sample 14","C6",null,null,"D6","IgM\n+ / - / ∅",null,"E6","Sample 30","IgM\n+ / - / ∅",null,null,"Sample 38","IgM\n+ / - / ∅"]
[null,"Sample 5","IgM\n+ / - / ∅","B5",null,"Sample 13","C5",null,null,"D5","IgM\n+ / - / ∅",null,"E5","Sample 29","IgM\n+ / - / ∅",null,null,"Sample 37","IgM\n+ / - / ∅"]
[null,"Sample 4","IgM\n+ / - / ∅","B4",null,"Sample 12","C4",null,null,"D4","IgM\n+ / - / ∅",null,"E4","Sample 28","IgM\n+ / - / ∅",null,null,"Sample 36","IgM\n+ / - / ∅"]
[null,"Sample 3","IgM\n+ / - / ∅","B3",null,"Sample 11","C3",null,null,"D3","IgM\n+ / - / ∅",null,"E3","Sample 27","IgM\n+ / - / ∅",null,null,"Sample 35","IgM\n+ / - / ∅"]
[null,"Sample 2","IgM\n+ / - / ∅","B2",null,"Sample 10","C2",null,null,"D2","IgM\n+ / - / ∅",null,"E2","Sample 26","IgM\n+ / - / ∅",null,null,"Sample 34","IgM\n+ / - / ∅"]
[null,"Sample 1","IgM\n+ / - / ∅","B1",null,"Sample 9","C1",null,null,"D1","IgM\n+ / - / ∅",null,"E1","Sample 25","IgM\n+ / - / ∅",null,null,"Sample 33","IgM\n+ / - / ∅"]
[]
[null,null,null,"_____________________","_____________________"]
[null,null,null,"_____________________","_____________________"]
[null,null,null,"_____________________","_____________________",null,null,null,null,"Humidity:","_____________________"]
[null,null,null,"_____________________","_____________________"]
[null,null,null,"_____________________","_____________________",null,null,null,null,"Time fluid handler finish:","_____________________"]
[null,null,null,"_____________________","_____________________"]
[]
[]
[]
[]
[]
[]
[]
[]
[]
[]
[null,"Sample 1","ASFV\n+ / - / ∅","Other information","Other information"]
[null,null,"ASFV\n+ / - / ∅","Other information","Other information"]
[null,null,"ASFV\n+ / - / ∅","Other information","Other information"]
[null,null,"ASFV\n+ / - / ∅","Other information","Other information"]
[null,null,"ASFV\n+ / - / ∅","Other information","Other information"]
[null,null,"ASFV\n+ / - / ∅","Other information","Other information"]
[null,null,"ASFV\n+ / - / ∅","Other information","Other information"]
[null,null,"ASFV\n+ / - / ∅","Other information","Other information"]
[null,null,"ASFV\n+ / - / ∅","Other information","Other information"]
[null,null,"ASFV\n+ / - / ∅","Other information","Other information"]
[null,null,"ASFV\n+ / - / ∅","Other information","Other information"]
[null,null,"ASFV\n+ / - / ∅","Other information","Other information"]
[null,null,"ASFV\n+ / - / ∅","Other information","Other information"]
[null,null,"ASFV\n+ / - / ∅","Other information","Other information"]
[null,null,"ASFV\n+ / - / ∅","Other information","Other information"]
[null,null,"ASFV\n+ / - / ∅","Other information","Other information"]
[null,null,"ASFV\n+ / - / ∅","Other information","Other information"]
[null,null,"ASFV\n+ / - / ∅","Other information","Other information"]
[null,null,"ASFV\n+ / - / ∅","Other information","Other information"]
[null,null,"ASFV\n+ / - / ∅","Other information","Other information"]
[null,null,"ASFV\n+ / - / ∅","Other information","Other information"]
[null,null,"ASFV\n+ / - / ∅","Other information","Other information"]
[null,null,"ASFV\n+ / - / ∅","Other information","Other information"]
[null,null,"ASFV\n+ / - / ∅","Other information","Other information"]
[null,null,"ASFV\n+ / - / ∅","Other information","Other information"]
[null,null,"ASFV\n+ / - / ∅","Other information","Other information"]
[null,null,"ASFV\n+ / - / ∅","Other information","Other information"]
[null,null,"ASFV\n+ / - / ∅","Other information","Other information"]
[null,null,"ASFV\n+ / - / ∅","Other information","Other information"]
[null,null,"ASFV\n+ / - / ∅","Other information","Other information"]
[null,null,"ASFV\n+ / - / ∅","Other information","Other information"]
[null,null,"ASFV\n+ / - / ∅","Other information","Other information"]
[null,null,"ASFV\n+ / - / ∅","Other information","Other information"]
[null,null,"ASFV\n+ / - / ∅","Other information","Other information"]
[null,null,"ASFV\n+ / - / ∅","Other information","Other information"]
[null,null,"ASFV\n+ / - / ∅","Other information","Other information"]
[null,null,"ASFV\n+ / - / ∅","Other information","Other information"]
[null,null,"ASFV\n+ / - / ∅","Other information","Other information"]
[null,null,"ASFV\n+ / - / ∅","Other information","Other information"]
[null,null,"ASFV\n+ / - / ∅","Other information","Other information"]
[null,null,"ASFV\n+ / - / ∅","Other information","Other information"]
[null,null,"ASFV\n+ / - / ∅","Other information","Other information"]